[Event "*** SCC Grand Prix: Titled Tuesday Blitz"]
[Site "Chess.com"]
[Date "2020.07.07"]
[Round "3"]
[White "Smile2005"]
[Black "Na_binci"]
[Result "1-0"]
[WhiteElo "2481"]
[BlackElo "2157"]
[TimeControl "180+1"]
[EndTime "10:28:25 PDT"]
[Termination "Smile2005 won on time"]

1. b3 {[%clk 0:03:00.9]} 1... Nf6 {[%clk 0:02:57.4]} 2. Bb2 {[%clk 0:03:01.8]}
2... g6 {[%clk 0:02:58]} 3. Bxf6 {[%clk 0:02:59.9]} 3... exf6 {[%clk 0:02:58.9]}
4. e3 {[%clk 0:03:00]} 4... Bg7 {[%clk 0:02:59.6]} 5. d4 {[%clk 0:02:59.9]} 5...
O-O {[%clk 0:03:00.5]} 6. c4 {[%clk 0:02:54.3]} 6... d5 {[%clk 0:03:00.3]} 7.
Nc3 {[%clk 0:02:52.8]} 7... c6 {[%clk 0:02:59.8]} 8. cxd5 {[%clk 0:02:52.1]}
8... cxd5 {[%clk 0:02:59.2]} 9. Nge2 {[%clk 0:02:52]} 9... Nc6 {[%clk
0:02:54.5]} 10. g3 {[%clk 0:02:51.1]} 10... f5 {[%clk 0:02:25.2]} 11. Bg2 {[%clk
0:02:50]} 11... Be6 {[%clk 0:02:25]} 12. O-O {[%clk 0:02:47.9]} 12... Qd7 {[%clk
0:02:12.9]} 13. Nf4 {[%clk 0:02:44.2]} 13... Ne7 {[%clk 0:02:06.1]} 14. Na4
{[%clk 0:02:38.3]} 14... b6 {[%clk 0:02:04.1]} 15. Rc1 {[%clk 0:02:35.4]} 15...
Rac8 {[%clk 0:01:59.6]} 16. Qd2 {[%clk 0:02:32.9]} 16... g5 {[%clk 0:01:56.4]}
17. Nd3 {[%clk 0:02:22.7]} 17... Ng6 {[%clk 0:01:24.5]} 18. Nc3 {[%clk
0:02:01.8]} 18... f4 {[%clk 0:00:48.1]} 19. exf4 {[%clk 0:01:54.6]} 19... gxf4
{[%clk 0:00:44.9]} 20. Nxf4 {[%clk 0:01:54.2]} 20... Nxf4 {[%clk 0:00:31.7]} 21.
Qxf4 {[%clk 0:01:50.6]} 21... Rc7 {[%clk 0:00:23.1]} 22. Qg5 {[%clk 0:01:27.9]}
22... h6 {[%clk 0:00:19.8]} 23. Qe3 {[%clk 0:01:18.9]} 23... Rfc8 {[%clk
0:00:18.4]} 24. Ne2 {[%clk 0:01:17.8]} 24... Rxc1 {[%clk 0:00:12.2]} 25. Rxc1
{[%clk 0:01:11.1]} 25... Rxc1+ {[%clk 0:00:12.3]} 26. Qxc1 {[%clk 0:01:09.8]}
26... Qb5 {[%clk 0:00:13.2]} 27. Nf4 {[%clk 0:01:09]} 27... Bxd4 {[%clk
0:00:11.1]} 28. Nxe6 {[%clk 0:01:05.9]} 28... fxe6 {[%clk 0:00:12]} 29. Qxh6
{[%clk 0:01:04.7]} 29... Kf7 {[%clk 0:00:11.9]} 30. Qf4+ {[%clk 0:01:01.2]}
30... Bf6 {[%clk 0:00:11.6]} 31. g4 {[%clk 0:00:58.9]} 31... Ke7 {[%clk
0:00:03.4]} 32. g5 {[%clk 0:00:57.2]} 32... Bc3 {[%clk 0:00:02.4]} 33. Qc7+
{[%clk 0:00:55.9]} 33... Qd7 {[%clk 0:00:01.6]} 34. Qxc3 {[%clk 0:00:55.1]} 1-0

[Event "*** SCC Grand Prix: Titled Tuesday Blitz"]
[Site "Chess.com"]
[Date "2020.07.07"]
[Round "3"]
[White "aNaartjieZA"]
[Black "Shield12"]
[Result "0-1"]
[WhiteElo "2541"]
[BlackElo "2831"]
[TimeControl "180+1"]
[EndTime "10:28:28 PDT"]
[Termination "Shield12 won by resignation"]

1. e4 {[%clk 0:03:00.9]} 1... c5 {[%clk 0:03:00.1]} 2. Nf3 {[%clk 0:03:01]} 2...
Nc6 {[%clk 0:03:00.3]} 3. g3 {[%clk 0:03:01.2]} 3... Nf6 {[%clk 0:03:00.4]} 4.
d3 {[%clk 0:03:01.2]} 4... d5 {[%clk 0:03:00.4]} 5. Nbd2 {[%clk 0:03:01.4]} 5...
g6 {[%clk 0:03:00.2]} 6. Bg2 {[%clk 0:03:01.3]} 6... Bg7 {[%clk 0:03:00.8]} 7.
O-O {[%clk 0:03:01.4]} 7... O-O {[%clk 0:03:01.5]} 8. Re1 {[%clk 0:03:01.7]}
8... b6 {[%clk 0:02:56.7]} 9. exd5 {[%clk 0:03:01]} 9... Nxd5 {[%clk 0:02:57.6]}
10. a4 {[%clk 0:03:00]} 10... Bb7 {[%clk 0:02:56.9]} 11. Nc4 {[%clk 0:02:59.5]}
11... Qc7 {[%clk 0:02:55.3]} 12. c3 {[%clk 0:02:55]} 12... Rad8 {[%clk
0:02:49.4]} 13. Qe2 {[%clk 0:02:53.9]} 13... e6 {[%clk 0:02:48.3]} 14. h4 {[%clk
0:02:52]} 14... h6 {[%clk 0:02:46.9]} 15. Bd2 {[%clk 0:02:50.4]} 15... Nf6
{[%clk 0:02:42.5]} 16. Rad1 {[%clk 0:02:48.8]} 16... Rfe8 {[%clk 0:02:42.1]} 17.
Bf4 {[%clk 0:02:47.6]} 17... Qe7 {[%clk 0:02:41.2]} 18. Nfe5 {[%clk 0:02:46.7]}
18... Nxe5 {[%clk 0:02:41]} 19. Bxe5 {[%clk 0:02:46.3]} 19... Bxg2 {[%clk
0:02:40.6]} 20. Kxg2 {[%clk 0:02:46.8]} 20... Qd7 {[%clk 0:02:38.3]} 21. b3
{[%clk 0:02:44.9]} 21... Nd5 {[%clk 0:02:36.5]} 22. Bxg7 {[%clk 0:02:38.7]}
22... Kxg7 {[%clk 0:02:37.4]} 23. h5 {[%clk 0:02:25.1]} 23... g5 {[%clk
0:02:35.5]} 24. Qe5+ {[%clk 0:02:19.7]} 24... f6 {[%clk 0:02:34.5]} 25. Qe4
{[%clk 0:02:19.1]} 25... Qf7 {[%clk 0:02:34.4]} 26. Rc1 {[%clk 0:02:15.9]} 26...
Qxh5 {[%clk 0:02:33.6]} 27. a5 {[%clk 0:02:05.8]} 27... b5 {[%clk 0:02:27.1]}
28. Ne3 {[%clk 0:02:05.5]} 28... Qg6 {[%clk 0:02:23.5]} 29. Qxg6+ {[%clk
0:02:01.5]} 29... Kxg6 {[%clk 0:02:23.6]} 30. Nd1 {[%clk 0:01:55.1]} 30... Nc7
{[%clk 0:02:12]} 31. Nb2 {[%clk 0:01:54.8]} 31... Rd6 {[%clk 0:02:11.4]} 32. c4
{[%clk 0:01:54.2]} 32... b4 {[%clk 0:02:09.3]} 33. Re3 {[%clk 0:01:53.9]} 33...
e5 {[%clk 0:02:09.1]} 34. Na4 {[%clk 0:01:52.6]} 34... Ne6 {[%clk 0:02:09]} 35.
Nb2 {[%clk 0:01:49.6]} 35... h5 {[%clk 0:02:07]} 36. Ra1 {[%clk 0:01:45.5]}
36... Red8 {[%clk 0:02:05.1]} 37. a6 {[%clk 0:01:45]} 37... Rb6 {[%clk
0:01:55.7]} 38. Ra5 {[%clk 0:01:43.4]} 38... Rdd6 {[%clk 0:01:55.6]} 39. Na4
{[%clk 0:01:42.3]} 39... Rxa6 {[%clk 0:01:55.8]} 40. Rb5 {[%clk 0:01:42.4]}
40... Rac6 {[%clk 0:01:50.9]} 41. Rb8 {[%clk 0:01:41.2]} 41... Rd7 {[%clk
0:01:48.2]} 42. Rg8+ {[%clk 0:01:39.6]} 42... Kh7 {[%clk 0:01:43.5]} 43. Re8
{[%clk 0:01:38.4]} 43... Nd4 {[%clk 0:01:38.5]} 44. f4 {[%clk 0:01:33.2]} 44...
gxf4 {[%clk 0:01:31.1]} 45. gxf4 {[%clk 0:01:33.2]} 45... Rg7+ {[%clk 0:01:32]}
46. Kf2 {[%clk 0:01:31.4]} 46... exf4 {[%clk 0:01:31.7]} 47. Rh3 {[%clk
0:01:31.2]} 47... Rg5 {[%clk 0:01:23.4]} 48. Re7+ {[%clk 0:01:30.2]} 48... Kg6
{[%clk 0:01:23.3]} 49. Rxa7 {[%clk 0:01:29.2]} 49... f3 {[%clk 0:01:20.9]} 50.
Ra8 {[%clk 0:01:26.5]} 50... Re6 {[%clk 0:01:19.4]} 51. Rg8+ {[%clk 0:01:25.3]}
51... Kf5 {[%clk 0:01:19.9]} 52. Rh8 {[%clk 0:01:16.8]} 52... Re2+ {[%clk
0:01:13.8]} 53. Kf1 {[%clk 0:01:16.7]} 53... Kg4 {[%clk 0:01:07.2]} 54. Rh1
{[%clk 0:01:13]} 54... f2 {[%clk 0:01:04.7]} 55. Rh2 {[%clk 0:01:07.8]} 55...
Kf3 {[%clk 0:01:03.4]} 56. Rh3+ {[%clk 0:01:04.5]} 56... Rg3 {[%clk 0:01:03.4]}
57. Rxg3+ {[%clk 0:01:04]} 57... Kxg3 {[%clk 0:01:04.3]} 58. Rg8+ {[%clk
0:01:03]} 58... Kf3 {[%clk 0:01:04.7]} 0-1

[Event "*** SCC Grand Prix: Titled Tuesday Blitz"]
[Site "Chess.com"]
[Date "2020.07.07"]
[Round "3"]
[White "pavelalexandru07"]
[Black "ChessSwole"]
[Result "0-1"]
[WhiteElo "2163"]
[BlackElo "2413"]
[TimeControl "180+1"]
[EndTime "10:28:30 PDT"]
[Termination "ChessSwole won by resignation"]

1. e4 {[%clk 0:03:00.9]} 1... c5 {[%clk 0:02:58.9]} 2. Nf3 {[%clk 0:03:00.3]}
2... e6 {[%clk 0:02:59.2]} 3. d4 {[%clk 0:03:00.1]} 3... cxd4 {[%clk 0:03:00.1]}
4. Nxd4 {[%clk 0:03:00.4]} 4... a6 {[%clk 0:03:00.7]} 5. c4 {[%clk 0:03:00.5]}
5... Qc7 {[%clk 0:03:00.6]} 6. Nc3 {[%clk 0:03:00.4]} 6... Nf6 {[%clk
0:03:01.2]} 7. a3 {[%clk 0:02:41.1]} 7... b6 {[%clk 0:03:00.9]} 8. Be3 {[%clk
0:02:32.1]} 8... Bb7 {[%clk 0:03:00.8]} 9. f3 {[%clk 0:02:32.3]} 9... Nc6 {[%clk
0:03:00.4]} 10. Be2 {[%clk 0:02:30.9]} 10... Nxd4 {[%clk 0:02:59.8]} 11. Bxd4
{[%clk 0:02:29.8]} 11... Bd6 {[%clk 0:02:59.7]} 12. Bg1 {[%clk 0:02:01.7]} 12...
O-O {[%clk 0:02:58]} 13. Qd2 {[%clk 0:02:00.7]} 13... Rac8 {[%clk 0:02:48.7]}
14. g3 {[%clk 0:01:32.1]} 14... Rfd8 {[%clk 0:02:45.4]} 15. Rd1 {[%clk
0:01:22.4]} 15... Be5 {[%clk 0:02:45.1]} 16. Qe3 {[%clk 0:01:11.8]} 16... d5
{[%clk 0:02:39.9]} 17. Qxb6 {[%clk 0:01:01.9]} 17... dxe4 {[%clk 0:02:09.6]} 18.
Qxc7 {[%clk 0:00:52.5]} 18... Rxd1+ {[%clk 0:02:06.2]} 19. Nxd1 {[%clk
0:00:29.6]} 19... Rxc7 {[%clk 0:02:07.1]} 20. f4 {[%clk 0:00:29]} 20... e3
{[%clk 0:01:59.2]} 21. fxe5 {[%clk 0:00:28.3]} 21... Nd7 {[%clk 0:01:59.6]} 22.
Bxe3 {[%clk 0:00:17.2]} 22... Bxh1 {[%clk 0:01:59.1]} 23. Bd4 {[%clk 0:00:17.5]}
23... f6 {[%clk 0:01:52.1]} 24. exf6 {[%clk 0:00:17.2]} 24... gxf6 {[%clk
0:01:53]} 25. b4 {[%clk 0:00:17.2]} 25... Kf7 {[%clk 0:01:48.9]} 26. Ne3 {[%clk
0:00:16]} 26... Be4 {[%clk 0:01:47]} 27. Bh5+ {[%clk 0:00:14.8]} 27... Ke7
{[%clk 0:01:45.9]} 28. c5 {[%clk 0:00:13.7]} 28... a5 {[%clk 0:01:36.8]} 29. Nc4
{[%clk 0:00:09.7]} 29... axb4 {[%clk 0:01:36.8]} 30. axb4 {[%clk 0:00:10]} 30...
Ra7 {[%clk 0:01:28]} 31. c6 {[%clk 0:00:07.6]} 31... Rc7 {[%clk 0:01:22.1]} 32.
cxd7 {[%clk 0:00:07.6]} 32... Rxc4 {[%clk 0:01:20.3]} 33. Bc5+ {[%clk
0:00:05.1]} 33... Kxd7 {[%clk 0:01:19.6]} 34. Be2 {[%clk 0:00:04.6]} 34... Rc2
{[%clk 0:01:17.1]} 35. Kd1 {[%clk 0:00:04.1]} 35... e5 {[%clk 0:01:07.7]} 36. h4
{[%clk 0:00:02.4]} 36... Ke6 {[%clk 0:01:03.5]} 37. Bf3 {[%clk 0:00:02.5]} 37...
Rxc5 {[%clk 0:00:59.3]} 38. bxc5 {[%clk 0:00:02.2]} 38... Bxf3+ {[%clk
0:00:58.8]} 39. Kd2 {[%clk 0:00:02.2]} 39... Kd5 {[%clk 0:00:59]} 40. Ke3 {[%clk
0:00:02.5]} 40... e4 {[%clk 0:00:59.5]} 41. Kf4 {[%clk 0:00:02.6]} 41... Kxc5
{[%clk 0:00:59.8]} 42. Kf5 {[%clk 0:00:03]} 42... e3 {[%clk 0:00:59.7]} 0-1

[Event "*** SCC Grand Prix: Titled Tuesday Blitz"]
[Site "Chess.com"]
[Date "2020.07.07"]
[Round "3"]
[White "Andrei_Belozerov"]
[Black "Gerodot71"]
[Result "1-0"]
[WhiteElo "2574"]
[BlackElo "2375"]
[TimeControl "180+1"]
[EndTime "10:28:32 PDT"]
[Termination "Andrei_Belozerov won by checkmate"]

1. e4 {[%clk 0:03:00.9]} 1... e5 {[%clk 0:02:59.7]} 2. Nf3 {[%clk 0:03:00.3]}
2... Nc6 {[%clk 0:03:00.3]} 3. Bb5 {[%clk 0:02:59.7]} 3... a6 {[%clk 0:03:00.1]}
4. Ba4 {[%clk 0:02:59.6]} 4... Nf6 {[%clk 0:02:59.9]} 5. O-O {[%clk 0:02:59.2]}
5... Be7 {[%clk 0:02:59.8]} 6. Re1 {[%clk 0:02:58.9]} 6... b5 {[%clk 0:02:59.7]}
7. Bb3 {[%clk 0:02:59]} 7... d6 {[%clk 0:03:00.2]} 8. c3 {[%clk 0:02:58.6]} 8...
O-O {[%clk 0:03:00.2]} 9. h3 {[%clk 0:02:58.5]} 9... Nb8 {[%clk 0:03:00.7]} 10.
d4 {[%clk 0:02:57.8]} 10... Nbd7 {[%clk 0:03:00.5]} 11. Nbd2 {[%clk 0:02:58.3]}
11... Bb7 {[%clk 0:03:00.2]} 12. Bc2 {[%clk 0:02:55.7]} 12... Re8 {[%clk
0:03:00]} 13. Nf1 {[%clk 0:02:55.6]} 13... Bf8 {[%clk 0:02:59.8]} 14. Ng3 {[%clk
0:02:55.7]} 14... g6 {[%clk 0:02:59]} 15. a4 {[%clk 0:02:52.3]} 15... Nb6 {[%clk
0:02:55.3]} 16. Bg5 {[%clk 0:02:39.6]} 16... Bg7 {[%clk 0:02:33.6]} 17. a5
{[%clk 0:02:18]} 17... Nbd7 {[%clk 0:02:31.6]} 18. Qd2 {[%clk 0:02:11.7]} 18...
c5 {[%clk 0:02:08]} 19. b4 {[%clk 0:01:45]} 19... cxb4 {[%clk 0:01:50.7]} 20.
cxb4 {[%clk 0:01:43.3]} 20... Rc8 {[%clk 0:01:51.2]} 21. d5 {[%clk 0:01:41.9]}
21... Qc7 {[%clk 0:01:40.8]} 22. Rac1 {[%clk 0:01:38.9]} 22... Kh8 {[%clk
0:01:16.5]} 23. Bd3 {[%clk 0:01:36.6]} 23... Qb8 {[%clk 0:01:15.7]} 24. Nh2
{[%clk 0:01:26.1]} 24... Ng8 {[%clk 0:01:12.1]} 25. Ng4 {[%clk 0:01:22.6]} 25...
f6 {[%clk 0:01:07.6]} 26. Be3 {[%clk 0:01:21]} 26... h5 {[%clk 0:01:01.3]} 27.
Nh2 {[%clk 0:01:18.9]} 27... Kh7 {[%clk 0:00:58.6]} 28. Nf3 {[%clk 0:01:14.7]}
28... Bh6 {[%clk 0:00:53.6]} 29. Nh4 {[%clk 0:01:12.7]} 29... Nf8 {[%clk
0:00:49]} 30. Qe2 {[%clk 0:01:06.1]} 30... Bxe3 {[%clk 0:00:39.1]} 31. fxe3
{[%clk 0:01:03.7]} 31... Rxc1 {[%clk 0:00:25.8]} 32. Rxc1 {[%clk 0:01:02.5]}
32... Rc8 {[%clk 0:00:25.6]} 33. Rf1 {[%clk 0:00:59.8]} 33... Qc7 {[%clk
0:00:03.8]} 34. Nxg6 {[%clk 0:00:59.3]} 34... Qf7 {[%clk 0:00:04.4]} 35. Qxh5+
{[%clk 0:00:56.6]} 35... Kg7 {[%clk 0:00:04.1]} 36. Nf5# {[%clk 0:00:53.2]} 1-0

[Event "*** SCC Grand Prix: Titled Tuesday Blitz"]
[Site "Chess.com"]
[Date "2020.07.07"]
[Round "3"]
[White "Budisavljevic"]
[Black "Sofiia_Hryzlova"]
[Result "1-0"]
[WhiteElo "2394"]
[BlackElo "2140"]
[TimeControl "180+1"]
[EndTime "10:28:32 PDT"]
[Termination "Budisavljevic won by resignation"]

1. d4 {[%clk 0:03:00.9]} 1... Nf6 {[%clk 0:02:59]} 2. Nf3 {[%clk 0:03:01.2]}
2... e6 {[%clk 0:02:57.2]} 3. Bf4 {[%clk 0:03:01.8]} 3... c5 {[%clk 0:02:55.9]}
4. e3 {[%clk 0:03:02.4]} 4... h6 {[%clk 0:02:50.5]} 5. Nbd2 {[%clk 0:02:57]}
5... Nh5 {[%clk 0:02:46.8]} 6. dxc5 {[%clk 0:02:41.9]} 6... Nxf4 {[%clk
0:02:40.5]} 7. exf4 {[%clk 0:02:42.8]} 7... Bxc5 {[%clk 0:02:40.5]} 8. Ne4
{[%clk 0:02:42.6]} 8... Qa5+ {[%clk 0:02:21.6]} 9. c3 {[%clk 0:02:42.4]} 9... d5
{[%clk 0:02:14.8]} 10. b4 {[%clk 0:02:32.4]} 10... Bxb4 {[%clk 0:01:50.2]} 11.
cxb4 {[%clk 0:02:33.3]} 11... Qxb4+ {[%clk 0:01:49.7]} 12. Ned2 {[%clk
0:02:33.5]} 12... Nc6 {[%clk 0:01:33.2]} 13. g3 {[%clk 0:02:18.4]} 13... d4
{[%clk 0:01:23.8]} 14. Bg2 {[%clk 0:01:56.7]} 14... O-O {[%clk 0:01:15.3]} 15.
O-O {[%clk 0:01:54.6]} 15... Rd8 {[%clk 0:01:09]} 16. Qb3 {[%clk 0:01:40.5]}
16... Qe7 {[%clk 0:01:01.5]} 17. Nc4 {[%clk 0:01:33.5]} 17... g5 {[%clk
0:00:36.4]} 18. fxg5 {[%clk 0:01:31.6]} 18... hxg5 {[%clk 0:00:35.8]} 19. Rfe1
{[%clk 0:01:31.1]} 19... a5 {[%clk 0:00:26.7]} 20. Rad1 {[%clk 0:01:27]} 20...
a4 {[%clk 0:00:23.4]} 21. Qd3 {[%clk 0:01:24.6]} 21... f5 {[%clk 0:00:19.5]} 22.
Nce5 {[%clk 0:01:10.6]} 22... g4 {[%clk 0:00:15.7]} 23. Nxc6 {[%clk 0:01:08.5]}
23... bxc6 {[%clk 0:00:15.9]} 24. Nxd4 {[%clk 0:01:03.9]} 24... Qf6 {[%clk
0:00:09.7]} 25. Qe3 {[%clk 0:00:59.8]} 25... Ra5 {[%clk 0:00:05.8]} 26. Nxc6
{[%clk 0:00:58.3]} 26... Rxd1 {[%clk 0:00:05.7]} 27. Rxd1 {[%clk 0:00:56.6]}
27... Rb5 {[%clk 0:00:05.6]} 28. Qd3 {[%clk 0:00:44.6]} 28... Kh7 {[%clk
0:00:03.3]} 29. Qxb5 {[%clk 0:00:40.5]} 29... Kg6 {[%clk 0:00:02.2]} 30. Qc5
{[%clk 0:00:37.4]} 1-0

[Event "*** SCC Grand Prix: Titled Tuesday Blitz"]
[Site "Chess.com"]
[Date "2020.07.07"]
[Round "3"]
[White "stolencandy13"]
[Black "boasovietica"]
[Result "1/2-1/2"]
[WhiteElo "2351"]
[BlackElo "2452"]
[TimeControl "180+1"]
[EndTime "10:28:33 PDT"]
[Termination "Game drawn by repetition"]

1. e4 {[%clk 0:03:00.9]} 1... e5 {[%clk 0:02:59]} 2. Nf3 {[%clk 0:03:00.4]} 2...
Nc6 {[%clk 0:02:59.4]} 3. Nc3 {[%clk 0:02:57.9]} 3... Nf6 {[%clk 0:02:58.8]} 4.
d4 {[%clk 0:02:58.3]} 4... exd4 {[%clk 0:02:58.4]} 5. Nxd4 {[%clk 0:02:59.2]}
5... Bb4 {[%clk 0:02:58.4]} 6. Nxc6 {[%clk 0:02:58.9]} 6... bxc6 {[%clk
0:02:58.3]} 7. Bd3 {[%clk 0:02:56.9]} 7... d5 {[%clk 0:02:57.6]} 8. exd5 {[%clk
0:02:57.8]} 8... O-O {[%clk 0:02:57.6]} 9. O-O {[%clk 0:02:55.2]} 9... cxd5
{[%clk 0:02:57.3]} 10. h3 {[%clk 0:02:54.7]} 10... c6 {[%clk 0:02:56.2]} 11. Qf3
{[%clk 0:02:53.7]} 11... Bd6 {[%clk 0:02:50.6]} 12. Bf4 {[%clk 0:02:52.1]} 12...
Rb8 {[%clk 0:02:47.6]} 13. b3 {[%clk 0:02:50.7]} 13... Re8 {[%clk 0:02:41.2]}
14. Ne2 {[%clk 0:02:50.4]} 14... Qc7 {[%clk 0:02:38.5]} 15. Rad1 {[%clk
0:02:47.3]} 15... Bd7 {[%clk 0:02:26.8]} 16. c4 {[%clk 0:02:43.4]} 16... Bxf4
{[%clk 0:02:01.6]} 17. Nxf4 {[%clk 0:02:42.1]} 17... dxc4 {[%clk 0:02:00.1]} 18.
Bxc4 {[%clk 0:02:43]} 18... c5 {[%clk 0:01:47.1]} 19. Nh5 {[%clk 0:02:34.2]}
19... Rb6 {[%clk 0:01:31.1]} 20. Rfe1 {[%clk 0:02:31.7]} 20... Rxe1+ {[%clk
0:01:20.9]} 21. Rxe1 {[%clk 0:02:32.6]} 21... h6 {[%clk 0:00:22.1]} 22. Bd3
{[%clk 0:02:09.7]} 22... Nxh5 {[%clk 0:00:16.2]} 23. Qxh5 {[%clk 0:02:06.2]}
23... Re6 {[%clk 0:00:14.9]} 24. Rxe6 {[%clk 0:02:02.7]} 24... Bxe6 {[%clk
0:00:14.9]} 25. Qf3 {[%clk 0:01:58.6]} 25... Qd7 {[%clk 0:00:14.2]} 26. Qa8+
{[%clk 0:01:56]} 26... Qc8 {[%clk 0:00:14.5]} 27. Qe4 {[%clk 0:01:48]} 27... g6
{[%clk 0:00:14]} 28. h4 {[%clk 0:01:45.1]} 28... Qd7 {[%clk 0:00:14.1]} 29. g3
{[%clk 0:01:37.9]} 29... Bf5 {[%clk 0:00:12.9]} 30. Qa8+ {[%clk 0:01:37.9]}
30... Kg7 {[%clk 0:00:13]} 31. Bxf5 {[%clk 0:01:37.5]} 31... Qxf5 {[%clk
0:00:12.8]} 32. Qxa7 {[%clk 0:01:35.8]} 32... Qb1+ {[%clk 0:00:12.9]} 33. Kh2
{[%clk 0:01:32.1]} 33... Qc2 {[%clk 0:00:13.2]} 34. Kg1 {[%clk 0:01:29]} 34...
Qd1+ {[%clk 0:00:12.9]} 35. Kh2 {[%clk 0:01:26.1]} 35... Qd4 {[%clk 0:00:12.7]}
36. Kg2 {[%clk 0:01:22.8]} 36... Qe4+ {[%clk 0:00:12.9]} 37. Kf1 {[%clk
0:01:21.4]} 37... Qh1+ {[%clk 0:00:12.5]} 38. Ke2 {[%clk 0:01:21.3]} 38... Qe4+
{[%clk 0:00:12.7]} 39. Kd2 {[%clk 0:01:15.1]} 39... Qd4+ {[%clk 0:00:13]} 40.
Ke1 {[%clk 0:01:14.1]} 40... Qe4+ {[%clk 0:00:12.8]} 41. Kf1 {[%clk 0:01:13.7]}
41... Qh1+ {[%clk 0:00:13]} 42. Ke2 {[%clk 0:01:14]} 42... Qe4+ {[%clk
0:00:13.9]} 43. Kd2 {[%clk 0:01:14.3]} 43... Qd4+ {[%clk 0:00:14.4]} 44. Kc1
{[%clk 0:01:09.5]} 44... Qc3+ {[%clk 0:00:13.6]} 45. Kb1 {[%clk 0:01:07.9]}
45... Qd3+ {[%clk 0:00:13.6]} 46. Kb2 {[%clk 0:01:07.8]} 46... Qd2+ {[%clk
0:00:13.9]} 47. Ka3 {[%clk 0:01:07.4]} 47... Qb4+ {[%clk 0:00:13.9]} 48. Kb2
{[%clk 0:01:07.2]} 48... Qd2+ {[%clk 0:00:14.8]} 49. Kb1 {[%clk 0:01:07.1]}
49... Qd1+ {[%clk 0:00:15.1]} 50. Kb2 {[%clk 0:01:07]} 50... Qd2+ {[%clk
0:00:16]} 1/2-1/2

[Event "*** SCC Grand Prix: Titled Tuesday Blitz"]
[Site "Chess.com"]
[Date "2020.07.07"]
[Round "3"]
[White "Sacbutt"]
[Black "rududuyk"]
[Result "0-1"]
[WhiteElo "2297"]
[BlackElo "2097"]
[TimeControl "180+1"]
[EndTime "10:28:35 PDT"]
[Termination "rududuyk won by checkmate"]

1. d4 {[%clk 0:03:00.9]} 1... e6 {[%clk 0:02:59.6]} 2. c4 {[%clk 0:03:01.1]}
2... f5 {[%clk 0:02:59.6]} 3. Nc3 {[%clk 0:03:01.1]} 3... Nf6 {[%clk 0:03:00]}
4. g3 {[%clk 0:03:01.6]} 4... Be7 {[%clk 0:03:00.1]} 5. Bg2 {[%clk 0:03:02.2]}
5... O-O {[%clk 0:03:00.6]} 6. Nf3 {[%clk 0:03:02.1]} 6... d6 {[%clk 0:03:01.1]}
7. O-O {[%clk 0:03:02.1]} 7... Ne4 {[%clk 0:03:01.2]} 8. Qc2 {[%clk 0:03:00.6]}
8... Nxc3 {[%clk 0:03:00.4]} 9. Qb3 {[%clk 0:02:56.6]} 9... Nxe2+ {[%clk
0:02:57.2]} 10. Kh1 {[%clk 0:02:52.1]} 10... Nxc1 {[%clk 0:02:54.6]} 11. Raxc1
{[%clk 0:02:51]} 11... Bf6 {[%clk 0:02:44.3]} 12. Rfe1 {[%clk 0:02:49.5]} 12...
Nc6 {[%clk 0:02:40.3]} 13. d5 {[%clk 0:02:46.5]} 13... Ne5 {[%clk 0:02:35.6]}
14. Nxe5 {[%clk 0:02:37.8]} 14... dxe5 {[%clk 0:02:22.1]} 15. dxe6 {[%clk
0:02:20.1]} 15... c6 {[%clk 0:02:19.5]} 16. c5 {[%clk 0:02:10.6]} 16... Qe7
{[%clk 0:02:17.6]} 17. Bf1 {[%clk 0:01:32.7]} 17... Bxe6 {[%clk 0:02:12.4]} 18.
Qa4 {[%clk 0:01:33.1]} 18... Bd5+ {[%clk 0:02:10.9]} 19. Kg1 {[%clk 0:01:33.5]}
19... Qf7 {[%clk 0:01:57.3]} 20. b4 {[%clk 0:01:28.9]} 20... Bxa2 {[%clk
0:01:50.3]} 21. Ra1 {[%clk 0:01:26.8]} 21... Bd5 {[%clk 0:01:48]} 22. b5 {[%clk
0:01:25.5]} 22... f4 {[%clk 0:01:35.7]} 23. Rad1 {[%clk 0:01:22.2]} 23... Bb3
{[%clk 0:01:28.6]} 24. Qb4 {[%clk 0:01:22.4]} 24... Bd5 {[%clk 0:01:24.1]} 25.
Rd2 {[%clk 0:01:07.2]} 25... fxg3 {[%clk 0:01:09]} 26. hxg3 {[%clk 0:01:06.8]}
26... Bg5 {[%clk 0:01:07.9]} 27. f4 {[%clk 0:00:37]} 27... exf4 {[%clk
0:01:02.8]} 28. gxf4 {[%clk 0:00:32.5]} 28... Bxf4 {[%clk 0:00:55.8]} 29. Rde2
{[%clk 0:00:29.9]} 29... Bg3 {[%clk 0:00:31.6]} 30. Rd1 {[%clk 0:00:20.5]} 30...
Bf2+ {[%clk 0:00:31.2]} 31. Kh2 {[%clk 0:00:19.1]} 31... Qg6 {[%clk 0:00:23.8]}
32. Bh3 {[%clk 0:00:14.1]} 32... Qg3# {[%clk 0:00:22.3]} 0-1

[Event "*** SCC Grand Prix: Titled Tuesday Blitz"]
[Site "Chess.com"]
[Date "2020.07.07"]
[Round "3"]
[White "GGfrances"]
[Black "12teen"]
[Result "1-0"]
[WhiteElo "2337"]
[BlackElo "2634"]
[TimeControl "180+1"]
[EndTime "10:28:36 PDT"]
[Termination "GGfrances won by resignation"]

1. e4 {[%clk 0:02:59.4]} 1... b6 {[%clk 0:02:55.5]} 2. d4 {[%clk 0:02:53.7]}
2... e6 {[%clk 0:02:54.6]} 3. Nf3 {[%clk 0:02:51.2]} 3... Bb7 {[%clk 0:02:54.6]}
4. Bd3 {[%clk 0:02:48.9]} 4... Nf6 {[%clk 0:02:54.6]} 5. Nc3 {[%clk 0:02:46.3]}
5... d5 {[%clk 0:02:54.5]} 6. exd5 {[%clk 0:02:43.7]} 6... Nxd5 {[%clk 0:02:54]}
7. Nxd5 {[%clk 0:02:41.7]} 7... Qxd5 {[%clk 0:02:54.9]} 8. O-O {[%clk
0:02:34.8]} 8... Bd6 {[%clk 0:02:52.4]} 9. Re1 {[%clk 0:02:30.3]} 9... Qh5
{[%clk 0:02:49.1]} 10. Ne5 {[%clk 0:02:30.4]} 10... Qxd1 {[%clk 0:02:47.2]} 11.
Rxd1 {[%clk 0:02:30.3]} 11... Bxe5 {[%clk 0:02:47.6]} 12. dxe5 {[%clk
0:02:27.5]} 12... Nd7 {[%clk 0:02:48.2]} 13. f4 {[%clk 0:02:25.2]} 13... O-O-O
{[%clk 0:02:47.2]} 14. Be3 {[%clk 0:02:22.9]} 14... a6 {[%clk 0:02:33.6]} 15. b4
{[%clk 0:02:19.7]} 15... g6 {[%clk 0:02:28.9]} 16. a4 {[%clk 0:02:16.4]} 16...
Nb8 {[%clk 0:02:17.8]} 17. b5 {[%clk 0:02:10.6]} 17... Rd7 {[%clk 0:02:03.4]}
18. Rd2 {[%clk 0:02:07.8]} 18... Rhd8 {[%clk 0:02:02]} 19. Rad1 {[%clk
0:02:03.9]} 19... Rd5 {[%clk 0:01:49.4]} 20. Kf2 {[%clk 0:01:46.2]} 20... Re8
{[%clk 0:01:26.1]} 21. c4 {[%clk 0:01:41.2]} 21... Rd7 {[%clk 0:01:25]} 22. c5
{[%clk 0:01:33.4]} 22... bxc5 {[%clk 0:01:25.3]} 23. Bxc5 {[%clk 0:01:29.9]}
23... Rd5 {[%clk 0:01:24.3]} 24. Rc2 {[%clk 0:01:22.3]} 24... Kd7 {[%clk
0:01:00.5]} 25. Ke3 {[%clk 0:01:16]} 25... Rd8 {[%clk 0:00:48.2]} 26. Rdc1
{[%clk 0:01:10.3]} 26... axb5 {[%clk 0:00:28.4]} 27. Bxb5+ {[%clk 0:01:04.2]}
27... c6 {[%clk 0:00:15.6]} 28. Bb6 {[%clk 0:00:52]} 28... cxb5 {[%clk
0:00:06.7]} 29. Rc7+ {[%clk 0:00:42.6]} 29... Ke8 {[%clk 0:00:07]} 30. Rxb7
{[%clk 0:00:37.8]} 30... Rd3+ {[%clk 0:00:06.5]} 31. Ke4 {[%clk 0:00:34.8]}
31... R8d7 {[%clk 0:00:01.4]} 32. Rxb8+ {[%clk 0:00:32.3]} 1-0